fUSD/lending_fUSD_20240912
["ID","MTS","AMOUNT","RATE_DAILY","PERIOD"]
[337816951,1726131051018,-154.968071,0.00014794,2]
[337816953,1726131051028,-989.59116931,0.00014794,2]
[337816954,1726131051037,-154.968071,0.00014794,2]
[337816956,1726131051047,-1251.59,0.00014794,2]
[337816958,1726131051056,-151.0,0.00014794,2]
[337816960,1726131051066,-1251.59,0.00014794,2]
[337816962,1726131051075,-154.968071,0.00014794,2]
[337816964,1726131051085,-151.0,0.00014794,2]
[337816966,1726131051102,-1251.82190431,0.00014794,2]
[337816968,1726131051120,-151.0,0.00014794,2]
[337816970,1726131051130,-154.968071,0.00014794,2]
[337816972,1726131051139,-151.0,0.00014794,2]
[337816973,1726131051148,-154.968071,0.00014794,2]
[337816975,1726131051157,-151.0,0.00014794,2]
[337816977,1726131051166,-154.968071,0.00014794,2]
[337816979,1726131051176,-154.968071,0.00014794,2]
[337816981,1726131051185,-151.0,0.00014794,2]
[337816983,1726131051194,-154.968071,0.00014794,2]
[337816985,1726131051204,-151.0,0.00014794,2]
[337816987,1726131051213,-500.0,0.00014794,2]
[337816988,1726131051222,-161.141264,0.00014794,2]
[337816990,1726131051231,-154.968071,0.00014794,2]
[337816991,1726131051241,-500.0,0.00014794,2]
[337816992,1726131051250,-154.968071,0.00014794,2]
[337816993,1726131051259,-543.13,0.00014794,2]
[337816994,1726131051268,-500.0,0.00014794,2]
[337816995,1726131051278,-543.13,0.00014794,2]
[337816996,1726131051287,-500.0,0.00014794,2]
[337816997,1726131051297,-154.968071,0.00014794,2]
[337816998,1726131051306,-543.13,0.00014794,2]
[337816999,1726131051315,-500.0,0.00014794,2]
[337817000,1726131051324,-154.968071,0.00014794,2]
[337817001,1726131051334,-543.13,0.00014794,2]
[337817002,1726131051343,-500.0,0.00014794,2]
[337817003,1726131051353,-154.968066,0.00014794,2]
[337817004,1726131051362,-543.13,0.00014794,2]
[337817005,1726131051372,-543.13,0.00014794,2]
[337817006,1726131051381,-543.13,0.00014794,2]
[337817007,1726131051391,-509.4,0.00014794,2]
[337817008,1726131051400,-509.4,0.00014794,2]
[337817009,1726131051409,-543.13,0.00014794,2]
[337817010,1726131051418,-509.4,0.00014794,2]
[337817011,1726131051427,-543.13,0.00014794,2]
[337817012,1726131051437,-509.4,0.00014794,2]
[337817013,1726131051446,-771.06,0.00014794,2]
[337817015,1726131051456,-543.13,0.00014794,2]
[337817017,1726131051466,-509.4,0.00014794,2]
[337817019,1726131051476,-543.13,0.00014794,2]
[337817021,1726131051485,-509.4,0.00014794,2]
[337817023,1726131051494,-543.13,0.00014794,2]
[337817025,1726131051508,-509.4,0.00014794,2]
[337817027,1726131051522,-509.4,0.00014794,2]
[337817029,1726131051531,-543.13,0.00014794,2]
[337817031,1726131051541,-181.56026622,0.00014794,2]
[337817033,1726131051551,-509.4,0.00014794,2]
[337817035,1726131051560,-543.13,0.00014794,2]
[337817037,1726131051569,-509.4,0.00014794,2]
[337817039,1726131051578,-543.13,0.00014794,2]
[337817041,1726131051588,-509.4,0.00014794,2]
[337817043,1726131051597,-543.13,0.00014794,2]
[337817045,1726131051607,-509.4,0.00014794,2]
[337817047,1726131051616,-543.13,0.00014794,2]
[337817048,1726131051625,-543.13,0.00014794,2]
[337817050,1726131051634,-509.4,0.00014794,2]
[337817052,1726131051644,-543.13,0.00014794,2]
[337817054,1726131051653,-509.4,0.00014794,2]
[337817056,1726131051662,-509.4,0.00014794,2]
[337817058,1726131051673,-543.13,0.00014794,2]
[337817060,1726131051682,-509.4,0.00014794,2]
[337817062,1726131051692,-543.13,0.00014794,2]
[337817063,1726131051701,-500.0,0.00014794,2]
[337817065,1726131051711,-509.4,0.00014794,2]
[337817067,1726131051719,-543.13,0.00014794,2]
[337817069,1726131051729,-500.0,0.00014794,2]
[337817071,1726131051738,-543.13,0.00014794,2]
[337817073,1726131051748,-500.0,0.00014794,2]
[337817075,1726131051759,-509.4,0.00014794,2]
[337817077,1726131051769,-509.4,0.00014794,2]
[337817079,1726131051778,-543.16938117,0.00014794,2]
[337817081,1726131051788,-500.0,0.00014794,2]
[337817083,1726131051797,-509.4,0.00014794,2]
[337817085,1726131051807,-516.33388403,0.00014794,2]
[337817086,1726131051815,-509.4,0.00014794,2]
[337817088,1726131051825,-509.4,0.00014794,2]
[337817090,1726131051834,-509.4,0.00014794,2]
[337817092,1726131051843,-509.45398255,0.00014794,2]
[337817094,1726131051852,-500.0,0.00014794,2]
[337817096,1726131051862,-500.0,0.00014794,2]
[337817098,1726131051872,-500.0,0.00014794,2]
[337817100,1726131051881,-500.0,0.00014794,2]
[337817102,1726131051890,-500.0,0.00014794,2]
[337817104,1726131051900,-2497.77,0.00014794,2]
[337817106,1726131051909,-500.0,0.00014794,2]
[337817108,1726131051919,-500.0,0.00014794,2]
[337817110,1726131051928,-2497.77,0.00014794,2]
[337817112,1726131051937,-500.0,0.00014794,2]
[337817114,1726131051946,-535.74409932,0.00014794,2]
[337817116,1726131051957,-500.0,0.00014794,2]
[337817118,1726131051967,-2497.77,0.00014794,2]
[337817120,1726131051976,-500.0,0.00014794,2]
[337817122,1726131051986,-311.02367381,0.00014794,2]
[337817124,1726131051995,-2497.77,0.00014794,2]
[337817126,1726131052005,-500.0,0.00014794,2]
[337817128,1726131052015,-2497.77,0.00014794,2]
[337817130,1726131052023,-500.0,0.00014794,2]
[337817131,1726131052032,-2497.77,0.00014794,2]
[337817134,1726131052043,-500.0,0.00014794,2]
[337817136,1726131052053,-1199.76,0.00014794,2]
[337817138,1726131052063,-2497.77,0.00014794,2]
[337817140,1726131052073,-500.0,0.00014794,2]
[337817142,1726131052082,-2497.77,0.00014794,2]
[337817143,1726131052091,-500.0,0.00014794,2]
[337817146,1726131052105,-2497.77,0.00014794,2]
[337817148,1726131052114,-1840.21,0.00014794,2]
[337817150,1726131052124,-500.0,0.00014794,2]
[337817152,1726131052133,-500.0,0.00014794,2]
[337817154,1726131052143,-2497.77,0.00014794,2]
[337817156,1726131052153,-500.0,0.00014794,2]
[337817158,1726131052163,-500.0,0.00014794,2]
[337817160,1726131052172,-2497.77,0.00014794,2]
[337817162,1726131052181,-500.0,0.00014794,2]
[337817164,1726131052190,-500.0,0.00014794,2]
[337817166,1726131052200,-500.0,0.00014794,2]
[337817168,1726131052209,-2497.77,0.00014794,2]
[337817170,1726131052219,-500.0,0.00014794,2]
[337817172,1726131052228,-500.0,0.00014794,2]
[337817174,1726131052237,-2497.77,0.00014794,2]
[337817176,1726131052247,-500.0,0.00014794,2]
[337817178,1726131052257,-500.0,0.00014794,2]
[337817180,1726131052266,-2497.77,0.00014794,2]
[337817182,1726131052276,-500.0,0.00014794,2]
[337817184,1726131052285,-500.0,0.00014794,2]
[337817186,1726131052294,-2497.77,0.00014794,2]
[337817188,1726131052304,-251.1575352,0.00014794,2]
[337817190,1726131052313,-500.0,0.00014794,2]
[337817191,1726131052322,-2497.77,0.00014794,2]
[337817194,1726131052332,-2497.77,0.00014794,2]
[337817196,1726131052341,-2497.77,0.00014794,2]
[337817198,1726131052351,-2497.77,0.00014794,2]
[337817199,1726131052360,-813.99,0.00014794,2]
[337817201,1726131052370,-2497.77,0.00014794,2]
[337817203,1726131052379,-2497.77,0.00014794,2]
[337817205,1726131052389,-2497.77,0.00014794,2]
[337817207,1726131052398,-2497.77,0.00014794,2]
[337817209,1726131052408,-2497.9681748,0.00014794,2]
[337817211,1726131052417,-1345.21,0.00014794,2]
[337817213,1726131052426,-500.0,0.00014794,2]
[337817215,1726131052435,-757.73,0.00014794,2]
[337817217,1726131052445,-500.0,0.00014794,2]
[337817219,1726131052454,-158.82661651,0.00014794,2]
[337817221,1726131052464,-500.0,0.00014794,2]
[337817223,1726131052473,-500.0,0.00014794,2]
[337817225,1726131052482,-500.0,0.00014794,2]
[337817227,1726131052492,-1574.0,0.00014794,2]
[337817229,1726131052501,-500.0,0.00014794,2]
[337817231,1726131052510,-1574.0,0.00014794,2]
[337817233,1726131052520,-500.0,0.00014794,2]
[337817235,1726131052529,-1574.0,0.00014794,2]
[337817237,1726131052540,-500.0,0.00014794,2]
[337817239,1726131052550,-500.0,0.00014794,2]
[337817240,1726131052559,-1574.0,0.00014794,2]
[337817242,1726131052568,-500.0,0.00014794,2]
[337817244,1726131052577,-500.0,0.00014794,2]
[337817246,1726131052587,-1574.0,0.00014794,2]
[337817248,1726131052596,-500.0,0.00014794,2]
[337817250,1726131052605,-500.0,0.00014794,2]
[337817252,1726131052614,-1574.0,0.00014794,2]
[337817253,1726131052624,-500.0,0.00014794,2]
[337817255,1726131052633,-1574.0,0.00014794,2]
[337817257,1726131052643,-500.0,0.00014794,2]
[337817259,1726131052652,-500.0,0.00014794,2]
[337817261,1726131052661,-1574.0,0.00014794,2]
[337817263,1726131052671,-500.0,0.00014794,2]
[337817265,1726131052680,-500.0,0.00014794,2]
[337817267,1726131052689,-500.0,0.00014794,2]
[337817269,1726131052698,-151.0,0.00014794,2]
[337817271,1726131052707,-1574.0,0.00014794,2]
[337817273,1726131052717,-500.0,0.00014794,2]
[337817274,1726131052726,-1574.0,0.00014794,2]
[337817277,1726131052735,-151.0,0.00014794,2]
[337817279,1726131052745,-500.0,0.00014794,2]
[337817280,1726131052755,-1574.0,0.00014794,2]
[337817282,1726131052764,-151.0,0.00014794,2]
[337817284,1726131052773,-500.0,0.00014794,2]
[337817286,1726131052783,-1574.0,0.00014794,2]
[337817288,1726131052793,-500.0,0.00014794,2]
[337817290,1726131052803,-1574.0,0.00014794,2]
[337817292,1726131052812,-151.0,0.00014794,2]
[337817294,1726131052822,-500.0,0.00014794,2]
[337817296,1726131052832,-500.0,0.00014794,2]
[337817298,1726131052842,-1574.0,0.00014794,2]
[337817300,1726131052852,-151.0,0.00014794,2]
[337817302,1726131052861,-1574.0,0.00014794,2]
[337817304,1726131052871,-1574.0,0.00014794,2]
[337817306,1726131052880,-500.0,0.00014794,2]
[337817308,1726131052889,-151.0,0.00014794,2]
[337817310,1726131052899,-1574.0,0.00014794,2]
[337817312,1726131052909,-500.0,0.00014794,2]
[337817314,1726131052919,-151.0,0.00014794,2]
[337817316,1726131052928,-1574.0,0.00014794,2]
[337817318,1726131052938,-211.76794893,0.00014794,2]
[337817320,1726131052947,-151.0,0.00014794,2]
[337817321,1726131052956,-1574.0,0.00014794,2]
[337817323,1726131052966,-1574.0,0.00014794,2]
[337817325,1726131052975,-500.0,0.00014794,2]
[337817327,1726131052984,-151.0,0.00014794,2]
[337817329,1726131052993,-1574.0,0.00014794,2]
[337817331,1726131053004,-151.0,0.00014794,2]
[337817333,1726131053014,-1574.0,0.00014794,2]
[337817335,1726131053023,-1574.0,0.00014794,2]
[337817337,1726131053033,-886.61,0.00014794,2]
[337817339,1726131053043,-151.0,0.00014794,2]
[337817341,1726131053053,-1574.16739618,0.00014794,2]
[337817343,1726131053063,-151.0,0.00014794,2]
[337817345,1726131053073,-500.0,0.00014794,2]
[337817347,1726131053083,-500.0,0.00014794,2]
[337817349,1726131053093,-500.0,0.00014794,2]
[337817351,1726131053106,-150.76471188,0.00014794,2]
[337817353,1726131053116,-151.0,0.00014794,2]
[337817355,1726131053125,-151.0,0.00014794,2]
[337817357,1726131053135,-151.0,0.00014794,2]
[337817359,1726131053146,-1656.44,0.00014794,2]
[337817361,1726131053156,-510.18,0.00014794,2]
[337817363,1726131053167,-151.0,0.00014794,2]
[337817365,1726131053181,-1656.44,0.00014794,2]
[337817367,1726131053190,-510.18,0.00014794,2]
[337817369,1726131053200,-1656.44,0.00014794,2]
[337817371,1726131053210,-500.0,0.00014794,2]
[337817373,1726131053220,-227.165109,0.00014794,2]
[337817375,1726131053230,-500.0,0.00014794,2]
[337817377,1726131053240,-1656.44,0.00014794,2]
[337817379,1726131053249,-1138.95,0.00014794,2]
[337817381,1726131053261,-510.18,0.00014794,2]
[337817383,1726131053271,-1656.44,0.00014794,2]
[337817385,1726131053280,-510.18,0.00014794,2]
[337817387,1726131053289,-1656.44,0.00014794,2]
[337817388,1726131053298,-1656.44,0.00014794,2]
[337817390,1726131053307,-1656.44,0.00014794,2]
[337817392,1726131053317,-1656.44,0.00014794,2]
[337817394,1726131053328,-510.18,0.00014794,2]
[337817396,1726131053338,-1138.95,0.00014794,2]
[337817398,1726131053347,-510.18,0.00014794,2]
[337817400,1726131053356,-1656.44,0.00014794,2]
[337817402,1726131053365,-1138.95,0.00014794,2]
[337817403,1726131053374,-510.18,0.00014794,2]
[337817405,1726131053384,-1656.44,0.00014794,2]
[337817407,1726131053393,-1138.95,0.00014794,2]
[337817409,1726131053403,-510.18,0.00014794,2]
[337817411,1726131053412,-510.18,0.00014794,2]
[337817413,1726131053421,-1138.95,0.00014794,2]
[337817415,1726131053431,-151.0,0.00014794,2]
[337817417,1726131053440,-510.18,0.00014794,2]
[337817419,1726131053449,-151.0,0.00014794,2]
[337817421,1726131053458,-510.18,0.00014794,2]
[337817422,1726131053467,-158.937306,0.00014794,2]
[337817424,1726131053477,-510.18,0.00014794,2]
[337817426,1726131053487,-500.0,0.00014794,2]
[337817428,1726131053496,-510.18,0.00014794,2]
[337817430,1726131053506,-510.18,0.00014794,2]
[337817432,1726131053515,-500.0,0.00014794,2]
[337817434,1726131053524,-510.18,0.00014794,2]
[337817436,1726131053533,-500.0,0.00014794,2]
[337817438,1726131053543,-1656.44,0.00014794,2]
[337817440,1726131053551,-510.18,0.00014794,2]
[337817442,1726131053561,-1656.44,0.00014794,2]
[337817444,1726131053570,-231.79031931,0.00014794,2]
[337817446,1726131053579,-510.18,0.00014794,2]
[337817448,1726131053589,-160.8698582,0.00014794,2]
[337817850,1726131057627,789.66,0.00011635,2]
[337819263,1726131073243,11507.0,0.000103,5]
[337819383,1726131166168,11507.0,0.000103,5]
[337819384,1726131168201,500.0,8.972e-05,2]
[337819385,1726131168525,500.0,8.22e-05,2]
[337819386,1726131168698,500.0,0.00011164,2]
[337819387,1726131170164,500.0,0.00010342,2]
[337819388,1726131170206,500.0,0.0001096,2]
[337819389,1726131183212,273.0,0.00011635,2]
[337819390,1726131183890,500.0,0.00011635,2]
[337819391,1726131184181,500.0,0.00011635,2]
[337819392,1726131215326,500.0,0.00011164,2]
[337819395,1726131368260,176.43,0.00010981,2]
[337819410,1726131542044,1217.07,0.00011057,2]
[337819411,1726131574044,363.68,0.00010959,2]
[337819417,1726131619864,5000.0,0.00011057,2]
[337819428,1726131917425,176.43,0.00010334,2]
[337819429,1726131918405,200.28023084,0.00011002,2]
[337819451,1726132072920,700.0,0.00012,2]
[337819452,1726132087524,158.38,0.00010959,2]
[337819453,1726132142077,33.98777835,0.00010697,2]
[337819454,1726132142100,1172.93222165,0.00010697,2]
[337819474,1726132232263,-150.0,0.00012472,2]
[337819475,1726132232273,-500.0,0.00012534,2]
[337819476,1726132232282,-374.9,0.00012668,2]
[337819477,1726132232292,-250.0,0.00012697,2]
[337819478,1726132232302,-159.91,0.00012718,2]
[337819479,1726132232311,-23.19,0.00012772,2]
[337819480,1726132232323,-142.44091281,0.00012772,2]
[337819482,1726132232332,-300.0,0.0001293,2]
[337819484,1726132232341,-983.92753357,0.00012931,2]
[337819497,1726132238028,-250.0,0.00012743,2]
[337819498,1726132238038,-1003.80246643,0.00012931,2]
[337819499,1726132238048,-150.0,0.00012931,2]
[337819500,1726132238059,-289.75319439,0.00012931,2]
[337819501,1726132238097,-801.97680561,0.00012931,2]
[337819502,1726132238106,-1091.73,0.00012934,2]
[337819503,1726132238117,-368.46818799,0.00012938,2]
[337819504,1726132238130,-610.07294809,0.00012938,2]
[337819505,1726132238253,-113.18886392,0.00012938,2]
[337819506,1726132238262,-315.66256638,0.00012941,2]
[337819619,1726132241121,-776.06743362,0.00012941,2]
[337819621,1726132241130,-1091.73,0.00012945,2]
[337819623,1726132241140,-2016.6440123,0.00012945,2]
[337819627,1726132241170,-730.07124766,0.00012945,2]
[337819629,1726132241181,-332.54659203,0.00012945,2]
[337819631,1726132241193,-719.91383798,0.00012945,2]
[337819633,1726132241205,-547.52749393,0.00012945,2]
[337819635,1726132241215,-565.9393223,0.00012945,2]
[337819637,1726132241226,-911.6174938,0.00012945,2]
[337819639,1726132241235,-335.57445783,0.00012948,2]
[337819648,1726132241314,-756.15554217,0.00012948,2]
[337819650,1726132241323,-499.99,0.00012948,2]
[337819652,1726132241332,-557.14444636,0.00012948,2]
[337819654,1726132241344,-395.48039178,0.00012948,2]
[337819663,1726132241419,-996.45,0.00012948,2]
[337819665,1726132241430,-2190.83165,0.00012948,2]
[337819667,1726132241442,-2881.45898581,0.00012948,2]
[337819785,1726132244774,-8562.1023488,0.00012948,2]
[337819786,1726132244786,-300.0,0.00012948,2]
[337819787,1726132244852,-1055.01217725,0.00012948,2]
[337819788,1726132244861,-70.92390597,0.00012951,2]
[337819815,1726132246666,-1020.80609403,0.00012951,2]
[337819817,1726132246676,-4432.8981359,0.00012953,2]
[337819819,1726132246695,-747.54487454,0.00012953,2]
[337819822,1726132246717,-5500.0,0.00012953,2]
[337820003,1726132277457,500.0,0.00011164,2]
[337820010,1726132480944,176.43,0.00010403,2]
[337820011,1726132510021,147.61,0.00011,2]
[337820012,1726132510047,902.39,0.00011,2]
[337820015,1726132648415,1192.2,0.00010843,2]
[337820016,1726132696034,157.85,0.00010959,2]
[337820024,1726133130029,-150.0,0.0001242,2]
[337820025,1726133130051,-189.70622647,0.00012435,2]
[337820026,1726133130072,-1329.782875,0.00012468,2]
[337820027,1726133130094,-709.63,0.00012531,2]
[337820028,1726133130117,-709.63,0.00012534,2]
[337820029,1726133130140,-709.63,0.00012538,2]
[337820030,1726133130162,-709.63,0.00012541,2]
[337820031,1726133130185,-709.63,0.00012544,2]
[337820032,1726133130207,-709.63,0.00012548,2]
[337820033,1726133130240,-709.63,0.00012551,2]
[337820034,1726133130264,-709.63,0.00012554,2]
[337820035,1726133130287,-709.63,0.00012557,2]
[337820036,1726133130601,-709.63,0.00012561,2]
[337820037,1726133130625,-709.63,0.00012564,2]
[337820038,1726133130649,-709.63,0.00012567,2]
[337820039,1726133130672,-709.63,0.00012571,2]
[337820040,1726133130695,-709.63,0.00012574,2]
[337820041,1726133130717,-300.0,0.00012576,2]
[337820042,1726133130741,-709.63,0.00012577,2]
[337820043,1726133130764,-709.63,0.0001258,2]
[337820044,1726133130788,-709.63,0.00012584,2]
[337820045,1726133130812,-709.63,0.00012587,2]
[337820046,1726133130836,-709.63,0.0001259,2]
[337820047,1726133130859,-709.63,0.00012594,2]
[337820048,1726133130882,-171.92,0.0001272,2]
[337820049,1726133130905,-22469.99089853,0.0001272,2]
[337820053,1726133135182,229.33999868,0.0001,2]
[337820056,1726133162267,160.84885282,9e-05,2]
[337820057,1726133177808,153.23,0.00010959,2]
[337820059,1726133199140,281.37592048,0.00010987,2]
[337820060,1726133199168,950.07407952,0.00010987,2]
[337820064,1726133239628,205.0,9.8e-05,2]
[337820076,1726133244051,245.62542199,0.000101,2]
[337820079,1726133265788,-500.82414919,0.000123,2]
[337820080,1726133265812,-1430.00910147,0.0001272,2]
[337820081,1726133265833,-386.07655609,0.00012751,2]
[337820082,1726133265856,-4737.8636,0.00012755,2]
[337820083,1726133265879,-227.46,0.0001276,2]
[337820084,1726133265902,-217.89,0.00012764,2]
[337820085,1726133265923,-802.28,0.00012767,2]
[337820086,1726133265943,-707.76,0.00012773,2]
[337820087,1726133265965,-250.0,0.00012777,2]
[337820088,1726133265986,-150.99,0.00012786,2]
[337820089,1726133266007,-159.53,0.00012789,2]
[337820090,1726133266029,-500.0,0.00012801,2]
[337820091,1726133266051,-300.0,0.00012801,2]
[337820092,1726133266073,-200.0,0.00012802,2]
[337820093,1726133266096,-459.53,0.00012834,2]
[337820094,1726133266117,-250.0,0.00012894,2]
[337820095,1726133266138,-1206.81,0.00012909,2]
[337820096,1726133266160,-250.0,0.0001291,2]
[337820097,1726133266182,-2525.60977,0.00012953,2]
[337820098,1726133266202,-2000.0,0.00012953,2]
[337820099,1726133266223,-499.99,0.00012972,2]
[337820100,1726133266245,-178.69,0.00012992,2]
[337820101,1726133266266,-661.431,0.00012995,2]
[337820102,1726133266287,-210.91,0.00012995,2]
[337820103,1726133266308,-1100.0,0.00013,2]
[337820104,1726133266332,-155.63,0.00013034,2]
[337820105,1726133266354,-16.71582325,0.00013034,2]
[337820106,1726133280339,15481.41751108,0.0001,2]
[337820107,1726133294356,4067.95706693,0.000109,2]
[337820108,1726133294386,2127.16069246,0.000109,2]
[337820109,1726133294413,1688.53729435,0.000109,2]
[337820110,1726133294436,7064.83496588,0.000109,2]
[337820117,1726133318995,211.52386181,0.0001,2]
[337820123,1726133432260,-834.81196786,0.00012934,2]
[337820125,1726133432271,-335.92939992,0.00012934,2]
[337820126,1726133432281,-348.89010204,0.00012934,2]
[337820127,1726133432322,-334.50747262,0.00012934,2]
[337820128,1726133432335,-345.5,0.00012934,2]
[337820129,1726133432447,-566.54007379,0.00012934,2]
[337820130,1726133432460,-358.935,0.00012934,2]
[337820131,1726133432491,-594.99826677,0.00012934,2]
[337820132,1726133432533,-2438.81374445,0.00012934,2]
[337820133,1726133432546,-3913.15587255,0.00012934,2]
[337820134,1726133432557,-168.75,0.00013039,2]
[337820135,1726133432567,-408.9014,0.00013041,2]
[337820136,1726133432578,-205.63,0.0001305,2]
[337820137,1726133432589,-500.0,0.00013082,2]
[337820138,1726133432598,-1264.82257848,0.00013083,2]
[337820139,1726133432608,-417.48191736,0.00013251,2]
[337820140,1726133432622,-813.96808264,0.00013251,2]
[337820141,1726133432634,-386.07655609,0.00013254,2]
[337820142,1726133432645,-150.0,0.0001329,2]
[337820143,1726133432656,-150.0,0.0001329,2]
[337820144,1726133432666,-150.0,0.0001329,2]
[337820145,1726133432675,-147.36084804,0.0001329,2]
[337820146,1726133432689,-2.63915196,0.0001329,2]
[337820147,1726133432699,-173.62,0.00013341,2]
[337820148,1726133432709,-150.79,0.00013483,2]
[337820149,1726133432718,-200.0,0.00013494,2]
[337820150,1726133432728,-1000.0,0.00013502,2]
[337820151,1726133432738,-159.53,0.00013523,2]
[337820152,1726133432749,-250.0,0.00013555,2]
[337820153,1726133432760,-150.0,0.0001366,2]
[337820154,1726133432769,-500.0,0.000137,2]
[337820155,1726133432779,-500.0,0.00013904,2]
[337820156,1726133432789,-500.0,0.00013904,2]
[337820157,1726133432798,-500.0,0.00013956,2]
[337820158,1726133432809,-391.72,0.00013956,2]
[337820159,1726133432819,-500.0,0.00013956,2]
[337820160,1726133432828,-254.34,0.00013956,2]
[337820161,1726133432838,-150.0,0.00014029,2]
[337820162,1726133432848,-180.85,0.00014042,2]
[337820163,1726133432857,-156.01556592,0.000142,2]
[337820195,1726133439426,-102.30379468,0.000142,2]
[337820196,1726133439435,-150.0,0.00014398,2]
[337820197,1726133439446,-373.65718622,0.000145,2]
[337820198,1726133439455,-1056.0817934,0.00014557,2]
[337820199,1726133439601,-66.24394812,0.00014557,2]
[337820200,1726133439610,-214.072,0.00014574,2]
[337820201,1726133439620,-150.0,0.00014574,2]
[337820202,1726133439629,-646.48711197,0.00014601,2]
[337820229,1726133440918,-5.43427665,0.00014601,2]
[337820231,1726133440930,-848.07861138,0.00014601,2]
[337820233,1726133440939,-223.0,0.00014646,2]
[337820235,1726133440949,-7232.74988161,0.00014674,2]
[337820237,1726133440960,-2000.0260368,0.00014674,2]
[337820240,1726133440981,-460.63094984,0.00014674,2]
[337820243,1726133441005,-1041.85,0.00014674,2]
[337820246,1726133441026,-9945.61583175,0.00014674,2]
[337820248,1726133441035,-205.63,0.00014681,2]
[337820250,1726133441045,-9575.0538,0.00014684,2]
[337820252,1726133441054,-3678.4285,0.00014684,2]
[337820254,1726133441064,-1717.9737,0.00014684,2]
[337820256,1726133441074,-2500.0,0.00014684,2]
[337820258,1726133441083,-953.34256053,0.00014693,2]
[337820260,1726133441092,-953.34256044,0.00014693,2]
[337820262,1726133441102,-953.34256044,0.00014693,2]
[337820264,1726133441111,-953.34256044,0.00014693,2]
[337820266,1726133441120,-953.34256044,0.00014693,2]
[337820268,1726133441130,-953.34256044,0.00014694,2]
[337820270,1726133441139,-953.34256044,0.00014694,2]
[337820272,1726133441148,-953.34256044,0.00014694,2]
[337820274,1726133441157,-953.34256044,0.00014694,2]
[337820276,1726133441166,-1219.5522,0.00014694,2]
[337820278,1726133441175,-220.60246218,0.00014694,2]
[337820280,1726133441184,-953.34256044,0.00014694,2]
[337820282,1726133441193,-734.60770791,0.00014694,2]
[337820284,1726133441203,-328.34598579,0.00014694,2]
[337820286,1726133441212,-812.114,0.00014729,2]
[337820288,1726133441222,-150.216,0.00014729,2]
[337820290,1726133441231,-931.0,0.00014729,2]
[337820292,1726133441248,-559.997,0.00014729,2]
[337820294,1726133441257,-150.0,0.00014765,2]
[337820295,1726133441266,-258.35414013,0.00014767,2]
[337820296,1726133441276,-381.72593983,0.00014773,2]
[337820297,1726133441285,-68389.9605398,0.00014774,2]
[337820298,1726133441294,-290.4,0.00014774,3]
[337820299,1726133441304,-871.21,0.00014774,3]
[337820300,1726133441312,-150.0,0.00014777,2]
[337820301,1726133441322,-32827.1810591,0.00014784,2]
[337820302,1726133441331,-164.6748209,0.00014784,2]
[337820303,1726133441340,-164.6748209,0.00014784,2]
[337820304,1726133441349,-152.11,0.00014784,2]
[337820305,1726133441358,-1432.33406213,0.00014793,2]
[337820306,1726133441367,-1000.0,0.00014793,2]
[337820307,1726133441381,-912.0,0.00014793,2]
[337820308,1726133441390,-554.67013019,0.00014793,2]